bitfinex-derivatives/quotes_BTCF0:USTF0_20250926
["timestamp","ask_amount","ask_price","bid_price","bid_amount"]
[1758873660537,1.2775,109430.0,109420.0,0.1148855]
[1758873660726,0.41581,109430.0,109420.0,0.1284855]
[1758873661231,1.27281,109430.0,109420.0,0.1284855]
[1758873661428,0.41581,109430.0,109420.0,0.1284855]
[1758873661635,0.31581,109430.0,109420.0,0.1284855]
[1758873662238,0.34774,109430.0,109420.0,0.1284855]
[1758873662625,0.03193,109430.0,109420.0,0.4892855]
[1758873662934,1.21872,109440.0,109430.0,0.1274771]
[1758873663430,1.3100088,109440.0,109430.0,0.03618]
[1758873664233,1.3100888,109440.0,109430.0,0.1274771]
[1758873664838,1.3130888,109440.0,109430.0,0.03618]
[1758873665239,1.3130888,109440.0,109430.0,0.07318]
[1758873665543,1.3130888,109440.0,109430.0,0.037]
[1758873665544,1.7130888,109440.0,109430.0,0.037]
[1758873666332,0.455089,109440.0,109430.0,0.1630774]
[1758873666639,1.313569,109440.0,109430.0,0.1630774]
[1758873667035,0.3638,109440.0,109430.0,0.1630774]
[1758873667239,1.22216,109440.0,109430.0,0.1630774]
[1758873667534,0.003,109440.0,109430.0,0.1630774]
[1758873667838,0.86136,109440.0,109430.0,0.1630774]
[1758873668036,1.313449,109440.0,109430.0,0.04989]
[1758873668233,1.313209,109440.0,109430.0,0.1630773]
[1758873668739,1.713209,109440.0,109430.0,0.037]
[1758873671136,1.74001406,109440.0,109430.0,0.037]
[1758873672440,0.0913057,109420.0,109410.0,0.0136]
[1758873672643,1.6704257,109420.0,109410.0,0.0136]
[1758873672937,0.091314,109410.0,109400.0,0.0136]
[1758873673142,0.452114,109410.0,109400.0,0.0136]
[1758873673540,0.47893512,109410.0,109400.0,0.0136]
[1758873675047,0.0913223,109400.0,109390.0,0.01289]
[1758873675247,0.0913223,109400.0,109380.0,0.01289]
[1758873675248,0.0913307,109390.0,109380.0,0.01289]
[1758873675441,0.4451307,109390.0,109380.0,0.104229]
[1758873675642,0.4451307,109390.0,109380.0,0.126119]
[1758873676336,0.4451307,109390.0,109380.0,0.104229]
[1758873676337,0.4421307,109390.0,109380.0,0.104229]
[1758873676844,0.4421307,109390.0,109380.0,0.01289]
[1758873677544,0.091339,109380.0,109370.0,0.01289]
[1758873677737,1.310059,109380.0,109370.0,0.01289]
[1758873678647,1.315059,109380.0,109370.0,0.01289]
[1758873679055,1.315059,109380.0,109370.0,0.1039574]
[1758873679551,1.316059,109380.0,109370.0,0.1039574]
[1758873680254,1.316059,109380.0,109370.0,0.01261]
[1758873682556,0.0913474,109370.0,109360.0,0.0588506]
[1758873682755,0.4521474,109370.0,109360.0,0.0588506]
[1758873683457,0.8521474,109370.0,109360.0,0.0588506]
[1758873684048,0.8521474,109370.0,109360.0,0.0598506]
[1758873684252,0.8521476,109370.0,109360.0,0.1271359]
[1758873684460,0.86296,109370.0,109360.0,0.1271359]
[1758873684651,0.9543076,109370.0,109360.0,0.1271359]
[1758873686557,0.9543076,109370.0,109360.0,0.16476703]
[1758873688262,0.9543076,109370.0,109360.0,0.03578]
[1758873688967,1.3151076,109370.0,109360.0,0.03578]
[1758873689357,1.3151076,109370.0,109360.0,0.1271359]
[1758873689557,0.3824269,109380.0,109370.0,0.1271376]
[1758873689759,1.2473069,109380.0,109370.0,0.1271376]
[1758873690063,1.3386462,109380.0,109370.0,0.1271376]
[1758873690359,0.4737662,109380.0,109370.0,0.1271376]
[1758873690555,1.3388462,109380.0,109370.0,0.1271376]
[1758873690864,1.2485069,109380.0,109370.0,0.5271376]
[1758873691059,0.0226269,109380.0,109370.0,0.61856617]
[1758873691359,0.0226269,109380.0,109370.0,0.97936617]
[1758873691567,0.3608,109400.0,109390.0,0.1271209]
[1758873693363,0.3608,109400.0,109390.0,0.1341209]
[1758873693555,0.3608,109400.0,109390.0,0.1361209]
[1758873694367,0.3608,109400.0,109390.0,0.22753275]
[1758873695657,0.3608,109410.0,109400.0,0.1039625]
[1758873695964,1.3165142,109410.0,109400.0,0.1271125]
[1758873696561,1.2252,109410.0,109400.0,0.1271125]
[1758873696860,1.2252,109410.0,109400.0,0.1281125]
[1758873697163,0.3608,109410.0,109400.0,0.1281125]
[1758873697360,0.3608,109420.0,109410.0,0.1271042]
[1758873697562,1.22436,109420.0,109410.0,0.1271042]
[1758873698967,0.87096,109420.0,109410.0,0.1271042]
[1758873699766,0.006,109420.0,109410.0,0.1271042]
[1758873699968,0.86952,109420.0,109410.0,0.1281042]
[1758873700770,0.006,109420.0,109410.0,0.1281042]
[1758873701065,0.86924,109420.0,109410.0,0.1281042]
[1758873701566,0.86324,109420.0,109410.0,0.1281042]
[1758873701966,0.4520973,109430.0,109420.0,0.1270958]
[1758873702271,1.22332,109430.0,109420.0,0.1270958]
[1758873703266,1.23008,109430.0,109420.0,0.1270958]
[1758873703867,0.3678,109430.0,109420.0,0.1270958]
[1758873704167,1.2296,109430.0,109420.0,0.1270958]
[1758873704966,0.3608,109440.0,109430.0,0.01264]
[1758873705270,0.3608,109440.0,109430.0,0.1270874]
[1758873706164,0.3678,109440.0,109430.0,0.1270874]
[1758873706364,0.4590893,109440.0,109430.0,0.1270874]
[1758873706769,0.4590892,109440.0,109430.0,0.1270874]
[1758873707067,1.3199692,109440.0,109430.0,0.1270874]
[1758873707862,1.3129692,109440.0,109430.0,0.1280874]
[1758873708259,1.3129692,109440.0,109430.0,0.03679]
[1758873708569,1.7129692,109440.0,109430.0,0.01364]
[1758873708769,1.73392268,109440.0,109430.0,0.01364]
[1758873708970,1.73392268,109440.0,109430.0,0.1049375]
[1758873710167,1.73392268,109440.0,109430.0,0.01364]
[1758873710369,1.73392268,109440.0,109430.0,0.1049375]
[1758873711269,1.73392268,109440.0,109430.0,0.01364]
[1758873711862,1.73392268,109440.0,109430.0,0.1049375]
[1758873713169,1.73392268,109440.0,109430.0,0.01364]
[1758873713974,1.73392268,109440.0,109430.0,0.1049376]
[1758873714272,1.73392268,109440.0,109430.0,0.01364]
[1758873716176,1.73392268,109440.0,109430.0,0.001]
[1758873716576,1.76033831,109440.0,109430.0,0.001]
[1758873717166,0.0913061,109420.0,109410.0,0.01264]
[1758873717366,0.0913144,109410.0,109400.0,0.01264]
[1758873717568,0.4521144,109410.0,109400.0,0.01264]
[1758873718169,0.0913227,109400.0,109390.0,0.01321]
[1758873718368,1.33104991,109400.0,109390.0,0.01321]
[1758873718773,1.31904991,109400.0,109390.0,0.01321]
[1758873719275,1.32504991,109400.0,109390.0,0.01321]
[1758873719871,0.0913311,109390.0,109380.0,0.01321]
[1758873720080,0.0913394,109380.0,109370.0,0.01321]
[1758873720272,1.3110594,109380.0,109370.0,0.01321]
[1758873720763,1.33266068,109380.0,109370.0,0.01321]
[1758873721081,0.0913561,109360.0,109350.0,0.01321]
[1758873721272,1.6720761,109360.0,109350.0,0.01321]
[1758873721971,1.6710761,109360.0,109350.0,0.01321]
[1758873722566,1.6900761,109360.0,109350.0,0.01321]
[1758873724076,1.6900761,109360.0,109350.0,0.01313]
[1758873725974,1.6900761,109360.0,109350.0,0.03453]
[1758873727381,1.6900761,109360.0,109350.0,0.01313]
[1758873727680,1.6900761,109360.0,109350.0,0.03629]
[1758873727876,1.6900761,109360.0,109350.0,0.01313]
[1758873728183,1.7060361,109360.0,109350.0,0.01313]
[1758873729175,1.7072761,109360.0,109350.0,0.01313]
[1758873729376,1.7069161,109360.0,109350.0,0.01313]
[1758873730977,1.7069161,109360.0,109350.0,0.03629]
[1758873732378,1.7069161,109360.0,109350.0,0.1276545]
[1758873732579,0.8309561,109360.0,109350.0,0.1276545]
[1758873732779,1.6158,109360.0,109350.0,0.1276545]
[1758873733482,0.7406,109360.0,109350.0,0.1276545]
[1758873733779,1.61532,109360.0,109350.0,0.1276545]
[1758873733985,0.7406,109360.0,109350.0,0.5276545]
[1758873734179,1.25444,109360.0,109350.0,0.5276545]
[1758873734685,1.3457962,109360.0,109350.0,0.5276545]
[1758873734878,1.25444,109360.0,109350.0,0.5276545]
[1758873735080,0.89364,109360.0,109350.0,0.5276545]
[1758873735277,0.019,109360.0,109350.0,0.8884545]
[1758873735474,0.019,109360.0,109350.0,0.97989979]
[1758873736386,0.019,109360.0,109350.0,0.03629]
[1758873736387,0.4711562,109360.0,109350.0,0.03629]
[1758873736972,0.4711562,109360.0,109350.0,0.01313]
[1758873736973,0.4521562,109360.0,109350.0,0.01313]
[1758873737284,0.8521562,109360.0,109350.0,0.001]
[1758873737683,0.0913645,109350.0,109340.0,0.01321]
[1758873737885,1.3259645,109350.0,109340.0,0.01321]
[1758873738087,1.3259645,109350.0,109340.0,0.1045829]
[1758873738286,1.3259645,109350.0,109340.0,0.1277429]
[1758873739089,1.3259645,109350.0,109340.0,0.1275029]
[1758873739987,1.3259645,109350.0,109340.0,0.1285029]
[1758873740281,0.3608,109350.0,109340.0,0.1285029]
[1758873740485,0.02104489,109360.0,109350.0,0.1281045]
[1758873740683,0.3608,109370.0,109360.0,0.0913562]
[1758873740887,1.23576,109370.0,109360.0,0.5280962]
[1758873741184,1.23576,109370.0,109360.0,0.61954149]
[1758873741578,0.3608,109380.0,109370.0,0.1280878]
[1758873741779,1.23608,109380.0,109370.0,0.1280878]
[1758873742187,1.23608,109380.0,109370.0,0.21951637]
[1758873743791,1.7535223,109380.0,109370.0,0.01458]
[1758873744084,1.7535223,109380.0,109370.0,0.01558]
[1758873744889,1.7585223,109380.0,109370.0,0.01358]
[1758873745584,1.78009005,109380.0,109370.0,0.01358]
[1758873745788,0.0913483,109370.0,109360.0,0.1049367]
[1758873746085,0.4782511,109370.0,109360.0,0.1049367]
[1758873746987,0.4782511,109370.0,109360.0,0.1059367]
[1758873747181,0.4782511,109370.0,109360.0,0.002]
[1758873747491,0.91093896,109370.0,109360.0,0.002]
[1758873748492,0.96197075,109370.0,109360.0,0.001]
[1758873748789,0.91293896,109370.0,109360.0,0.001]
[1758873749289,0.96197075,109370.0,109360.0,0.001]
[1758873749491,0.0913566,109360.0,109350.0,0.01358]
[1758873749696,1.3522194,109360.0,109350.0,0.01358]
[1758873750091,1.38490726,109360.0,109350.0,0.01358]
[1758873750692,1.38990726,109360.0,109350.0,0.01358]
[1758873754996,1.3572194,109360.0,109350.0,0.01358]
[1758873760796,1.3572194,109360.0,109350.0,0.104945]
[1758873760986,1.3572194,109360.0,109350.0,0.01358]
[1758873761185,1.90752622,109360.0,109350.0,0.03527]
[1758873761690,1.90752622,109360.0,109350.0,0.01358]
[1758873761895,1.3530994,109360.0,109350.0,0.126635]
[1758873762193,0.4832594,109360.0,109350.0,0.126635]
[1758873762399,1.3530994,109360.0,109350.0,0.126635]
[1758873764200,1.90340622,109360.0,109350.0,0.126635]
[1758873764597,1.90284622,109360.0,109350.0,0.126635]
[1758873764897,1.81148962,109360.0,109350.0,0.126635]
[1758873765297,1.2611828,109360.0,109350.0,0.126635]
[1758873765595,1.3525394,109360.0,109350.0,0.126635]
[1758873766595,1.90284622,109360.0,109350.0,0.126635]
[1758873767703,1.81148962,109360.0,109350.0,0.126635]
[1758873769297,1.90284622,109360.0,109350.0,0.126635]
[1758873770495,1.90284622,109360.0,109350.0,0.01358]
[1758873771097,1.90284622,109360.0,109350.0,0.104945]
[1758873771298,1.90284622,109360.0,109350.0,0.126635]
[1758873772006,1.3525394,109360.0,109350.0,0.126635]
[1758873772194,1.90284622,109360.0,109350.0,0.126635]
[1758873773306,1.9026598,109360.0,109350.0,0.126635]
[1758873773706,1.87674342,109360.0,109350.0,0.126635]
[1758873773909,1.9026598,109360.0,109350.0,0.126635]
[1758873774110,1.87674342,109360.0,109350.0,0.126635]
[1758873774502,2.03078122,109360.0,109350.0,0.126635]
[1758873775008,2.03078122,109360.0,109350.0,0.01358]
[1758873775009,2.02442517,109360.0,109350.0,0.01358]
[1758873775210,2.37659748,109360.0,109350.0,0.01358]
[1758873775412,2.77659748,109360.0,109350.0,0.01358]
[1758873776313,2.79829366,109360.0,109350.0,0.01358]
[1758873776513,2.44612135,109360.0,109350.0,0.104945]
[1758873777915,1.34257278,109360.0,109350.0,0.128205]
[1758873778115,2.0469174,109360.0,109350.0,0.128205]
[1758873780318,1.9555608,109360.0,109350.0,0.128205]
[1758873780919,1.22792,109360.0,109350.0,0.48037731]
[1758873781111,1.58009231,109360.0,109350.0,0.48037731]
[1758873781314,1.93226462,109360.0,109350.0,0.128205]
[1758873781914,1.93254462,109360.0,109350.0,0.128205]
[1758873784711,0.3608,109360.0,109350.0,0.48037731]
[1758873784911,0.71297231,109370.0,109360.0,0.1285363]
[1758873785117,1.57925231,109370.0,109360.0,0.1285363]
[1758873786226,1.58025231,109370.0,109360.0,0.1285363]
[1758873786517,1.69747105,109370.0,109360.0,0.1295363]
[1758873787120,1.69747105,109370.0,109360.0,0.1285363]
[1758873788129,1.69663105,109370.0,109360.0,0.1285363]
[1758873789025,0.3618,109370.0,109360.0,0.1285363]
[1758873789225,1.227,109370.0,109360.0,0.1285363]
[1758873789726,1.227,109370.0,109360.0,0.1295363]
[1758873790025,0.001,109370.0,109360.0,0.1295363]
[1758873790323,0.86584,109370.0,109360.0,1.35972735]
[1758873790523,0.866,109370.0,109360.0,1.524244]
[1758873790724,0.866,109370.0,109360.0,1.45116428]
[1758873790926,0.86596,109370.0,109360.0,1.45116428]
[1758873791520,0.001,109370.0,109360.0,1.45116428]
[1758873792326,0.80504,109380.0,109370.0,0.1265481]
[1758873792919,0.80504,109380.0,109370.0,0.21798503]
[1758873793725,0.80504,109380.0,109370.0,0.22298503]
[1758873794122,0.80504,109380.0,109370.0,0.22398503]
[1758873794530,0.83019105,109390.0,109380.0,0.1265397]
[1758873794829,1.69487105,109390.0,109380.0,0.1265397]
[1758873795027,1.22548,109390.0,109380.0,0.1265397]
[1758873795329,1.69487105,109390.0,109380.0,0.1265397]
[1758873795922,1.69987105,109390.0,109380.0,0.1265397]
[1758873796234,1.79104245,109390.0,109380.0,0.1265397]
[1758873796726,0.83519105,109390.0,109380.0,0.1265397]
[1758873796932,1.69979105,109390.0,109380.0,0.1265397]
[1758873797629,1.69979105,109390.0,109380.0,0.15977348]
[1758873799228,1.69979105,109390.0,109380.0,0.16077348]
[1758873799428,1.79112235,109390.0,109380.0,0.16077348]
[1758873799933,1.79112235,109390.0,109380.0,0.15977348]
[1758873800127,0.92652235,109390.0,109380.0,0.15977348]
[1758873800631,1.79004235,109390.0,109380.0,0.15977348]
[1758873801034,0.92652235,109390.0,109380.0,0.15977348]
[1758873801333,1.78984235,109390.0,109380.0,0.15977348]
[1758873802633,1.78984235,109390.0,109380.0,0.0352]
[1758873803827,0.0913396,109380.0,109370.0,0.01357]
[1758873804031,0.92153065,109380.0,109370.0,0.01357]
[1758873805139,0.92153065,109380.0,109370.0,0.01457]
[1758873806739,0.92153065,109380.0,109370.0,0.106918]
[1758873807344,0.92153065,109380.0,109370.0,0.128038]
[1758873808745,1.33163105,109380.0,109370.0,0.128038]
[1758873808941,0.4731921,109390.0,109380.0,0.1254396]
[1758873809244,1.80474315,109390.0,109380.0,0.1254396]
[1758873809836,1.71341185,109390.0,109380.0,0.1254396]
[1758873810036,1.80474315,109390.0,109380.0,0.1254396]
[1758873810339,1.80974315,109390.0,109380.0,0.1254396]
[1758873810641,1.80946315,109390.0,109380.0,0.1254396]
[1758873810837,0.85625185,109390.0,109380.0,0.1254396]
[1758873811035,0.3868608,109390.0,109380.0,0.1254396]
[1758873811432,1.2487008,109390.0,109380.0,0.1254396]
[1758873811643,0.3868608,109390.0,109380.0,0.1254396]
[1758873811847,1.71789185,109390.0,109380.0,0.1254396]
[1758873814340,0.0260608,109390.0,109380.0,0.99483065]
[1758873814540,0.78847085,109410.0,109380.0,0.99483065]
[1758873814541,0.16564758,109410.0,109390.0,0.1254313]
[1758873814743,0.5823773,109420.0,109400.0,0.125423]
[1758873815045,0.11683167,109420.0,109410.0,0.01298]
[1758873815241,0.0913146,109410.0,109400.0,0.01298]
[1758873815446,0.4521146,109410.0,109400.0,0.0341]
[1758873815645,0.4521146,109410.0,109400.0,0.1254229]
[1758873816240,0.92150565,109410.0,109400.0,0.1254229]
[1758873816647,0.83019105,109410.0,109400.0,0.1254229]
[1758873816947,1.69111105,109410.0,109400.0,0.1254229]
[1758873818442,1.70411105,109410.0,109400.0,0.1254229]
[1758873818745,1.23472,109410.0,109400.0,0.1254229]
[1758873818945,1.70411105,109410.0,109400.0,0.1254229]
[1758873820045,1.23472,109410.0,109400.0,0.1254229]
[1758873820246,0.3738,109410.0,109400.0,0.1254229]
[1758873820440,0.013,109410.0,109400.0,0.95561395]
[1758873820641,0.87332,109410.0,109400.0,0.95561395]
[1758873820842,0.87332,109410.0,109400.0,0.4862229]
[1758873823140,1.23412,109410.0,109400.0,0.1254229]
[1758873824145,0.87332,109410.0,109400.0,0.1254229]
[1758873824541,0.87332,109410.0,109400.0,0.19688319]
[1758873826049,0.013,109410.0,109400.0,0.19688319]
[1758873826251,0.8726,109410.0,109400.0,0.19688319]
[1758873832852,0.8726,109410.0,109400.0,0.55768319]
[1758873834653,1.2334,109410.0,109400.0,0.19688319]
[1758873834853,1.70279105,109410.0,109400.0,0.19688319]
[1758873836652,1.2334,109410.0,109400.0,0.19688319]
[1758873836852,1.70279105,109410.0,109400.0,0.19688319]
[1758873838148,1.2334,109410.0,109400.0,0.19688319]
[1758873839356,1.3247143,109410.0,109400.0,0.19688319]
[1758873840751,1.2334,109410.0,109400.0,0.19688319]
[1758873841055,0.8726,109410.0,109400.0,0.19688319]
[1758873841256,0.868,109410.0,109400.0,0.19688319]
[1758873841652,1.3201146,109410.0,109400.0,0.19688319]
[1758873844759,1.2288,109410.0,109400.0,0.19688319]
[1758873845260,1.3201146,109410.0,109400.0,0.19688319]
[1758873846260,1.2288,109410.0,109400.0,0.19688319]
[1758873846559,1.58054957,109410.0,109400.0,0.54863276]
[1758873848059,1.67186417,109410.0,109400.0,0.54863276]
[1758873848247,1.58054957,109410.0,109400.0,0.54863276]
[1758873848860,1.58054957,109410.0,109400.0,0.19688319]
[1758873849254,1.58054957,109410.0,109400.0,0.54863276]
[1758873850056,1.67186427,109410.0,109400.0,0.19688319]
[1758873850359,1.57922957,109410.0,109400.0,0.54863276]
[1758873850757,1.22748,109410.0,109400.0,0.54863276]
[1758873850957,1.58230957,109410.0,109400.0,0.54863276]
[1758873852353,1.23056,109410.0,109400.0,0.54863276]
[1758873852559,1.58230957,109410.0,109400.0,0.54863276]
[1758873853460,1.58030957,109410.0,109400.0,0.54863276]
[1758873853663,1.57430957,109410.0,109400.0,0.54963276]
[1758873855563,2.41737384,109410.0,109400.0,0.01298]
[1758873855963,2.44272365,109410.0,109400.0,0.01298]
[1758873856555,0.39114981,109410.0,109400.0,0.47753267]
[1758873856760,1.66446427,109410.0,109400.0,0.1257831]
[1758873856956,0.71754957,109410.0,109400.0,0.47753267]
[1758873857153,1.57310957,109410.0,109400.0,0.47753267]
[1758873857353,1.57310957,109410.0,109400.0,0.1257831]
[1758873857559,1.57310957,109410.0,109400.0,0.47753267]
[1758873859364,1.57310957,109410.0,109400.0,0.01298]
[1758873859365,2.41617394,109410.0,109400.0,0.01298]
[1758873859557,2.41617394,109410.0,109400.0,0.1043031]
[1758873859761,2.43728011,109410.0,109400.0,0.1043031]
[1758873860255,2.43728011,109410.0,109400.0,0.1257831]
[1758873862158,2.08553054,109410.0,109400.0,0.1257831]
[1758873862563,2.43728011,109410.0,109400.0,0.1043031]
[1758873869179,1.73378097,109410.0,109400.0,0.1043031]
[1758873869478,2.43728011,109410.0,109400.0,0.1043031]
[1758873870779,2.43728011,109410.0,109400.0,0.1259131]
[1758873871179,2.08553054,109410.0,109400.0,0.1259131]
[1758873873688,2.08553054,109410.0,109400.0,0.1043031]
[1758873873985,2.43728011,109410.0,109400.0,0.1043031]
[1758873876087,2.43728011,109410.0,109400.0,0.1259131]
[1758873876290,1.7126748,109410.0,109400.0,0.1259131]
[1758873876490,2.06442437,109410.0,109400.0,0.1259131]
[1758873879494,1.3126748,109410.0,109400.0,0.1259131]
[1758873879696,1.66442437,109410.0,109400.0,0.1259131]
[1758873889496,1.66442437,109410.0,109400.0,0.03459]
[1758873896002,1.66442437,109410.0,109400.0,0.03571]
[1758873898399,1.3126748,109410.0,109400.0,0.03571]
[1758873898705,1.66442437,109410.0,109400.0,0.03571]
[1758873899506,1.3126748,109410.0,109400.0,0.01298]
[1758873899707,1.66442437,109410.0,109400.0,0.03571]
[1758873900407,2.01617394,109410.0,109400.0,0.03571]
[1758873901409,1.66442437,109410.0,109400.0,0.03571]
[1758873904110,1.66442437,109410.0,109400.0,0.1270333]
[1758873904609,0.80886437,109410.0,109400.0,0.47878287]
[1758873904817,0.3658,109410.0,109400.0,0.95021394]
[1758873905114,0.80886437,109410.0,109400.0,0.95021394]
[1758873905316,1.22004,109410.0,109400.0,1.30196351]
[1758873905612,1.66310457,109410.0,109400.0,1.30196351]
[1758873905817,1.57178957,109410.0,109400.0,0.95021394]
[1758873907916,1.21098957,109410.0,109400.0,0.95021394]
[1758873908509,0.8592,109410.0,109400.0,1.15878463]
[1758873908711,0.005,109410.0,109400.0,1.15878463]
[1758873908917,0.005,109410.0,109400.0,1.51958463]
[1758873910213,0.005,109410.0,109400.0,1.52058463]
[1758873910814,0.94253891,109440.0,109430.0,0.03594]
[1758873911014,1.72597891,109440.0,109430.0,0.03594]
[1758873911918,0.95953891,109440.0,109430.0,0.03594]
[1758873912110,1.81369891,109440.0,109430.0,0.03594]
[1758873912510,1.81369891,109440.0,109430.0,0.1272385]
[1758873912725,1.81669891,109440.0,109430.0,0.03594]
[1758873913123,1.81669891,109440.0,109430.0,0.1272385]
[1758873913819,0.96253891,109440.0,109430.0,0.1272385]
[1758873914033,1.81665891,109440.0,109430.0,0.1272385]
[1758873914525,0.96253891,109440.0,109430.0,0.1272385]
[1758873914722,1.81661891,109440.0,109430.0,0.1272385]
[1758873914917,1.34770215,109440.0,109430.0,0.1272385]
[1758873915117,0.96253891,109440.0,109430.0,0.15111364]
[1758873915318,1.81661891,109440.0,109430.0,0.15111364]
[1758873915624,0.3808,109440.0,109430.0,0.15111364]
[1758873915819,1.23488,109440.0,109430.0,0.15111364]
[1758873916014,1.3261702,109440.0,109430.0,0.15111364]
[1758873916420,1.3261702,109440.0,109430.0,1.0200304]
[1758873916421,0.3808,109440.0,109430.0,1.0200304]
[1758873916625,1.23484,109440.0,109430.0,1.03851425]
[1758873916925,0.87404,109440.0,109430.0,1.03851425]
[1758873917124,0.87404,109440.0,109430.0,0.56959749]
[1758873918321,0.87404,109440.0,109430.0,1.03851425]
[1758873919533,0.02,109440.0,109430.0,1.03851425]
[1758873919727,0.874,109440.0,109430.0,1.03851425]
[1758873920332,0.02,109440.0,109430.0,1.03851425]
[1758873920534,0.87396,109440.0,109430.0,1.03851425]
[1758873923438,0.02,109440.0,109430.0,1.03851425]
[1758873923631,0.87392,109440.0,109430.0,1.03851425]
[1758873923936,0.87392,109440.0,109430.0,1.39931425]
[1758873925236,0.87392,109440.0,109430.0,1.03851425]
[1758873926132,0.02,109440.0,109430.0,1.03851425]
[1758873926339,0.87384,109440.0,109430.0,1.03851425]
[1758873932439,0.87384,109440.0,109430.0,0.56959749]
[1758873935035,0.9651302,109440.0,109430.0,1.03851425]
[1758873939240,0.1112902,109440.0,109430.0,1.03851425]
[1758873939539,1.3256502,109440.0,109430.0,0.63851425]
[1758873941129,1.3226502,109440.0,109430.0,0.63851425]
[1758873942745,1.3226502,109440.0,109430.0,0.16959749]
[1758873943044,1.3056502,109440.0,109430.0,0.16959749]
[1758873943238,1.3106502,109440.0,109430.0,0.16959749]
[1758873945037,1.3106502,109440.0,109430.0,0.17059749]
[1758873945843,1.3106502,109440.0,109430.0,0.16959749]
[1758873946547,1.3106502,109440.0,109430.0,0.16959739]
[1758873951036,1.77956696,109440.0,109430.0,0.03699514]
[1758873951243,2.20483669,109440.0,109430.0,0.01312]
[1758873952650,2.17956696,109440.0,109430.0,0.01312]
[1758873953445,2.64848372,109440.0,109430.0,0.01312]
[1758873953646,0.0912984,109430.0,109420.0,0.01312]
[1758873953952,0.92101516,109430.0,109420.0,0.01312]
[1758873954550,1.32101516,109430.0,109420.0,0.01312]
[1758873954758,1.32101516,109430.0,109420.0,0.01412]
[1758873955053,1.32101516,109430.0,109420.0,0.01512]
[1758873956957,1.32301516,109430.0,109420.0,0.001]
[1758873957550,0.0913067,109420.0,109410.0,0.01312]
[1758873957750,1.77426346,109420.0,109410.0,0.01312]
[1758873958852,1.77926346,109420.0,109410.0,0.01312]
[1758873959354,2.17926346,109420.0,109410.0,0.01312]
[1758873961149,1.7103467,109420.0,109410.0,0.01312]
[1758873961349,0.3658,109420.0,109410.0,0.59536186]
[1758873961559,0.3658,109420.0,109410.0,0.61390431]
[1758873961560,1.3102667,109420.0,109410.0,0.61390431]
[1758873961759,0.9494667,109420.0,109410.0,0.61390431]
[1758873961963,0.005,109420.0,109410.0,0.61390431]
[1758873962356,0.85816,109420.0,109410.0,0.61390431]
[1758873963048,0.005,109420.0,109410.0,1.46609945]
[1758873963662,0.005,109420.0,109410.0,1.46709945]
[1758873964163,0.005,109420.0,109410.0,1.54926133]
[1758873964359,0.005,109420.0,109410.0,1.08030457]
[1758873964561,0.85316,109430.0,109420.0,0.1269167]
[1758873964755,0.3608,109440.0,109430.0,0.1046783]
[1758873964965,1.21392,109440.0,109430.0,0.1269583]
[1758873965170,1.30521,109440.0,109430.0,0.1269583]
[1758873965857,1.21392,109440.0,109430.0,0.1269583]
[1758873966753,1.21392,109440.0,109430.0,0.1451064]
[1758873967359,1.21392,109440.0,109430.0,0.1461064]
[1758873967962,1.21392,109440.0,109430.0,0.1451064]
[1758873968266,0.92100436,109450.0,109440.0,0.12695]
[1758873968267,0.3608,109450.0,109440.0,0.12695]
[1758873968466,1.2138,109450.0,109440.0,0.12695]
[1758873968872,1.68271676,109450.0,109440.0,0.12695]
[1758873969273,0.3608,109460.0,109450.0,0.1269417]
[1758873969469,1.77395006,109460.0,109450.0,0.03566]
[1758873970166,1.77395006,109460.0,109450.0,0.05663456]
[1758873970367,1.84871552,109460.0,109450.0,0.05663456]
[1758873970568,2.08279646,109460.0,109450.0,0.05663456]
[1758873971176,0.80306431,109460.0,109450.0,0.49941501]
[1758873971376,1.65598431,109460.0,109450.0,0.14791616]
[1758873971574,0.80306431,109460.0,109450.0,0.14791616]
[1758873971770,0.3708,109460.0,109450.0,0.49941501]
[1758873971970,0.01,109460.0,109450.0,1.72188727]
[1758873972575,0.01,109460.0,109450.0,1.80404915]
[1758873972971,0.008,109460.0,109450.0,1.80404915]
[1758873973270,0.008,109460.0,109450.0,1.72188727]
[1758873974681,0.008,109460.0,109450.0,1.79516251]
[1758873984387,0.008,109460.0,109450.0,0.69216481]
[1758873984587,0.008,109460.0,109450.0,1.89606366]
[1758873984985,0.008,109460.0,109450.0,2.24756251]
[1758873989392,0.80356545,109470.0,109460.0,0.1260236]
[1758873989593,0.80356545,109470.0,109460.0,0.8290213]
[1758873989995,0.80356545,109470.0,109460.0,0.47752245]
[1758873990387,0.80356545,109470.0,109460.0,0.1260236]
[1758873990589,0.80356545,109470.0,109460.0,0.47752245]
[1758873991197,0.80356545,109470.0,109460.0,0.8290213]
[1758873991590,0.81556545,109470.0,109460.0,0.8290213]
[1758873991789,0.81756545,109470.0,109460.0,0.8290213]
[1758873992099,0.80556545,109470.0,109460.0,0.8290213]
[1758873992298,0.81156545,109470.0,109460.0,0.8290213]
[1758873992598,0.81056545,109470.0,109460.0,0.8290213]
[1758873992794,0.81656545,109470.0,109460.0,0.8290213]
[1758873992992,0.81656545,109470.0,109460.0,0.47752245]
[1758873993295,0.81756545,109470.0,109460.0,0.47752245]
[1758873993493,0.4660666,109470.0,109460.0,0.47752245]
[1758873993797,1.66972545,109470.0,109460.0,0.1260236]
[1758873993998,1.66972545,109470.0,109460.0,0.47752245]
[1758873994596,1.65772545,109470.0,109460.0,0.47752245]
[1758873994896,1.66372545,109470.0,109460.0,0.47752245]
[1758873995400,1.66272545,109470.0,109460.0,0.47752245]
[1758873995994,1.66272545,109470.0,109460.0,0.1260236]
[1758873996198,1.66272545,109470.0,109460.0,0.47752245]
[1758873997394,1.3112266,109470.0,109460.0,0.47752245]
[1758873997598,1.66272545,109470.0,109460.0,0.47752245]
[1758873997995,1.66272545,109470.0,109460.0,0.1260236]
[1758873998196,1.66272545,109470.0,109460.0,0.47752245]
[1758873998397,0.4590666,109470.0,109460.0,0.47752245]
[1758873998592,1.66260545,109470.0,109460.0,0.47752245]
[1758873999896,0.81056545,109470.0,109460.0,0.47752245]
[1758874000099,1.3111066,109470.0,109460.0,0.47752245]
[1758874000300,1.66260545,109470.0,109460.0,0.47752245]
[1758874001401,1.3110666,109470.0,109460.0,0.47752245]
[1758874001601,1.66256545,109470.0,109460.0,0.47752245]
[1758874001795,1.3110666,109470.0,109460.0,0.8290213]
[1758874002202,1.66256545,109470.0,109460.0,0.8290213]
[1758874002801,0.4590666,109470.0,109460.0,0.8290213]
[1758874002998,1.3110266,109470.0,109460.0,0.8290213]